{"text_format":"3","workbook":"xlsx","n_sheets":2,"sheets":["COMMENCER","BUDGET MENSUEL PERSONNEL"],"read":"whole","date_system":"1900"}

{"sheet":"COMMENCER","index":0,"n_rows":7,"n_cols":2,"rows_kept":7}
[null,"À PROPOS DE CE MODÈLE"]
[null,"Utilisez cette feuille de calcul Budget mensuel personnel pour effectuer le suivi de vos revenus mensuels prévus et réels et de vos dépenses prévues et réelles."]
[null,"Entrez les dépenses par catégories dans les tables correspondantes."]
[null,"Le solde prévu, le solde réel et la différence sont calculés automatiquement."]
[null,"Remarque : "]
[null,"Des instructions supplémentaires sont disponibles dans la colonne A de la feuille de calcul BUDGET MENSUEL PERSONNEL. Ce texte a été intentionnellement masqué. Pour supprimer le texte, sélectionnez la colonne A et choisissez SUPPRIMER. Pour afficher le texte, sélectionnez la colonne A et changez la couleur de la police."]
[null,"Pour en savoir plus sur les tables de la feuille de calcul, appuyez sur MAJ, puis sur F10 au sein d’une table, et sélectionnez les options TABLE et TEXTE DE REMPLACEMENT."]

{"sheet":"BUDGET MENSUEL PERSONNEL","index":1,"n_rows":64,"n_cols":10,"rows_kept":64,"merged":[[3,1,5,1],[3,2,3,3],[3,6,4,8],[3,9,4,9],[4,2,4,3],[5,2,5,3],[5,6,6,8],[5,9,6,9],[7,1,9,1],[7,2,7,3],[7,6,8,8],[7,9,8,9],[8,2,8,3],[9,2,9,3],[22,6,22,9],[23,1,23,4],[31,6,31,9],[33,1,33,4],[38,6,38,9],[40,1,40,4],[44,6,44,9],[46,1,46,4],[50,6,50,9],[54,1,54,4],[57,6,57,9],[58,6,59,8],[58,9,59,9],[60,6,61,8],[60,9,61,9],[62,6,63,8],[62,9,63,9],[64,1,64,4]]}
["Créez un budget mensuel personnel dans ce classeur. Des instructions utiles sur l’utilisation de cette feuille de calcul sont disponibles dans les cellules de cette colonne. Appuyez sur la flèche Bas pour commencer."]
["Le titre de cette feuille de calcul se trouve dans la cellule de droite. L’instruction suivante figure dans la cellule A4.","BUDGET MENSUEL PERSONNEL"]
[]
["L’étiquette Revenus mensuels prévus se trouve dans la cellule de droite. Entrez le revenu 1 dans la cellule E4 et le revenu supplémentaire dans la cellule E5 pour calculer le total des revenus mensuels dans la cellule E6. L’instruction suivante figure dans la cellule A6.","REVENUS MENSUELS PRÉVUS","Revenu 1",null,{"v":4300,"d":"4,300.00 $"},null,"SOLDE PRÉVU \n(Revenu prévu moins les dépenses)",null,null,{"$f":"E6-J59","v":{"v":3405,"d":"3,405.00 $"}}]
[null,null,"Revenu supplémentaire",null,{"v":300,"d":"300.00 $"}]
["Le solde prévu est automatiquement calculé dans la cellule J4, le solde réel dans la cellule J6 et la différence dans la cellule J8. L’instruction suivante figure dans la cellule A8.",null,"Revenu mensuel total",null,{"$f":"SUM(E4:E5)","v":{"v":4600,"d":"4,600.00 $"}},null,"SOLDE RÉEL \n(Revenu réel moins les dépenses)",null,null,{"$f":"E10-J61","v":{"v":3064,"d":"3,064.00 $"}}]
[]
["L’étiquette Revenus mensuels réels se trouve dans la cellule de droite. Entrez le revenu 1 dans la cellule E8 et le revenu supplémentaire dans la cellule E9 pour calculer le revenu mensuel total dans la cellule E10. L’instruction suivante figure dans la cellule A12.","REVENUS MENSUELS RÉELS","Revenu 1",null,{"v":4000,"d":"4,000.00 $"},null,"DIFFÉRENCE \n(Revenu réel moins revenu prévu)",null,null,{"$f":"J6-J4","v":{"v":-341,"d":"-341.00 $ "}}]
[null,null,"Revenu supplémentaire",null,{"v":300,"d":"300.00 $"}]
[null,null,"Revenu mensuel total",null,{"$f":"SUM(E8:E9)","v":{"v":4300,"d":"4,300.00 $"}}]
[]
["Renseignez la table Logement à partir de la cellule de droite et la table Loisirs à partir de la cellule G12. L’instruction suivante figure dans la cellule A25.","LOGEMENT","Coût prévu","Coût réel","Différence",null,"LOISIRS","Coût prévu","Coût réel","Différence"]
[null,"Emprunt ou loyer",{"v":1000,"d":"1,000.00 $"},{"v":1000,"d":"1,000.00 $"},{"$f":"Logement[[#This Row],[Coût prévu]]-Logement[[#This Row],[Coût réel]]","v":{"v":0,"d":"0.00 $"}},null,"Vidéo/DVD",null,null,{"$f":"Loisirs[[#This Row],[Coût prévu]]-Loisirs[[#This Row],[Coût réel]]","v":{"v":0,"d":"0.00 $"}}]
[null,"Téléphone",{"v":54,"d":"54.00 $"},{"v":100,"d":"100.00 $"},{"$f":"Logement[[#This Row],[Coût prévu]]-Logement[[#This Row],[Coût réel]]","v":{"v":-46,"d":"-46.00 $"}},null,"CD",null,null,{"$f":"Loisirs[[#This Row],[Coût prévu]]-Loisirs[[#This Row],[Coût réel]]","v":{"v":0,"d":"0.00 $"}}]
[null,"Électricité",{"v":44,"d":"44.00 $"},{"v":56,"d":"56.00 $"},{"$f":"Logement[[#This Row],[Coût prévu]]-Logement[[#This Row],[Coût réel]]","v":{"v":-12,"d":"-12.00 $"}},null,"Cinéma",null,null,{"$f":"Loisirs[[#This Row],[Coût prévu]]-Loisirs[[#This Row],[Coût réel]]","v":{"v":0,"d":"0.00 $"}}]
[null,"Gaz",{"v":22,"d":"22.00 $"},{"v":28,"d":"28.00 $"},{"$f":"Logement[[#This Row],[Coût prévu]]-Logement[[#This Row],[Coût réel]]","v":{"v":-6,"d":"-6.00 $"}},null,"Concerts",null,null,{"$f":"Loisirs[[#This Row],[Coût prévu]]-Loisirs[[#This Row],[Coût réel]]","v":{"v":0,"d":"0.00 $"}}]
[null,"Eau",{"v":8,"d":"8.00 $"},{"v":8,"d":"8.00 $"},{"$f":"Logement[[#This Row],[Coût prévu]]-Logement[[#This Row],[Coût réel]]","v":{"v":0,"d":"0.00 $"}},null,"Événements sportifs",null,null,{"$f":"Loisirs[[#This Row],[Coût prévu]]-Loisirs[[#This Row],[Coût réel]]","v":{"v":0,"d":"0.00 $"}}]
[null,"Abonnement câble",{"v":34,"d":"34.00 $"},{"v":34,"d":"34.00 $"},{"$f":"Logement[[#This Row],[Coût prévu]]-Logement[[#This Row],[Coût réel]]","v":{"v":0,"d":"0.00 $"}},null,"Théâtre",null,null,{"$f":"Loisirs[[#This Row],[Coût prévu]]-Loisirs[[#This Row],[Coût réel]]","v":{"v":0,"d":"0.00 $"}}]
[null,"Enlèvement des ordures ménagères",{"v":10,"d":"10.00 $"},{"v":10,"d":"10.00 $"},{"$f":"Logement[[#This Row],[Coût prévu]]-Logement[[#This Row],[Coût réel]]","v":{"v":0,"d":"0.00 $"}},null,"Autre",null,null,{"$f":"Loisirs[[#This Row],[Coût prévu]]-Loisirs[[#This Row],[Coût réel]]","v":{"v":0,"d":"0.00 $"}}]
[null,"Entretien ou réparations",{"v":23,"d":"23.00 $"},{"v":0,"d":"0.00 $"},{"$f":"Logement[[#This Row],[Coût prévu]]-Logement[[#This Row],[Coût réel]]","v":{"v":23,"d":"23.00 $"}},null,"Autre",null,null,{"$f":"Loisirs[[#This Row],[Coût prévu]]-Loisirs[[#This Row],[Coût réel]]","v":{"v":0,"d":"0.00 $"}}]
[null,"Fournitures",{"v":0,"d":"0.00 $"},{"v":0,"d":"0.00 $"},{"$f":"Logement[[#This Row],[Coût prévu]]-Logement[[#This Row],[Coût réel]]","v":{"v":0,"d":"0.00 $"}},null,"Autre",null,null,{"$f":"Loisirs[[#This Row],[Coût prévu]]-Loisirs[[#This Row],[Coût réel]]","v":{"v":0,"d":"0.00 $"}}]
[null,"Autre",{"v":0,"d":"0.00 $"},{"v":0,"d":"0.00 $"},{"$f":"Logement[[#This Row],[Coût prévu]]-Logement[[#This Row],[Coût réel]]","v":{"v":0,"d":"0.00 $"}},null,"Sous-total",null,null,{"$f":"SUBTOTAL(109,Loisirs[Différence])","v":{"v":0,"d":"0.00 $"}}]
[null,"Sous-total",null,null,{"$f":"SUBTOTAL(109,Logement[Différence])","v":{"v":-41,"d":"-41.00 $"}}]
[{"$nulls":6},"EMPRUNTS","Coût prévu","Coût réel","Différence"]
["Renseignez la table Transport à partir de la cellule de droite et la table Emprunts à partir de la cellule G24. L’instruction suivante figure dans la cellule A35.","TRANSPORT","Coût prévu","Coût réel","Différence",null,"Personnels",null,null,{"$f":"Emprunts[[#This Row],[Coût prévu]]-Emprunts[[#This Row],[Coût réel]]","v":{"v":0,"d":"0.00 $"}}]
[null,"Paiement véhicule",null,null,{"$f":"Transport[[#This Row],[Coût prévu]]-Transport[[#This Row],[Coût réel]]","v":{"v":0,"d":"0.00 $"}},null,"Étudiants",null,null,{"$f":"Emprunts[[#This Row],[Coût prévu]]-Emprunts[[#This Row],[Coût réel]]","v":{"v":0,"d":"0.00 $"}}]
[null,"Bus/taxi",null,null,{"$f":"Transport[[#This Row],[Coût prévu]]-Transport[[#This Row],[Coût réel]]","v":{"v":0,"d":"0.00 $"}},null,"Carte de crédit",null,null,{"$f":"Emprunts[[#This Row],[Coût prévu]]-Emprunts[[#This Row],[Coût réel]]","v":{"v":0,"d":"0.00 $"}}]
[null,"Assurance",null,null,{"$f":"Transport[[#This Row],[Coût prévu]]-Transport[[#This Row],[Coût réel]]","v":{"v":0,"d":"0.00 $"}},null,"Carte de crédit",null,null,{"$f":"Emprunts[[#This Row],[Coût prévu]]-Emprunts[[#This Row],[Coût réel]]","v":{"v":0,"d":"0.00 $"}}]
[null,"Autorisation",null,null,{"$f":"Transport[[#This Row],[Coût prévu]]-Transport[[#This Row],[Coût réel]]","v":{"v":0,"d":"0.00 $"}},null,"Carte de crédit",null,null,{"$f":"Emprunts[[#This Row],[Coût prévu]]-Emprunts[[#This Row],[Coût réel]]","v":{"v":0,"d":"0.00 $"}}]
[null,"Carburant",null,null,{"$f":"Transport[[#This Row],[Coût prévu]]-Transport[[#This Row],[Coût réel]]","v":{"v":0,"d":"0.00 $"}},null,"Autre",null,null,{"$f":"Emprunts[[#This Row],[Coût prévu]]-Emprunts[[#This Row],[Coût réel]]","v":{"v":0,"d":"0.00 $"}}]
[null,"Entretien",null,null,{"$f":"Transport[[#This Row],[Coût prévu]]-Transport[[#This Row],[Coût réel]]","v":{"v":0,"d":"0.00 $"}},null,"Sous-total",null,null,{"$f":"SUBTOTAL(109,Emprunts[Différence])","v":{"v":0,"d":"0.00 $"}}]
[null,"Autre",null,null,{"$f":"Transport[[#This Row],[Coût prévu]]-Transport[[#This Row],[Coût réel]]","v":{"v":0,"d":"0.00 $"}}]
[null,"Sous-total",null,null,{"$f":"SUBTOTAL(109,Transport[Différence])","v":{"v":0,"d":"0.00 $"}},null,"IMPÔTS","Coût prévu","Coût réel","Différence"]
[{"$nulls":6},"Fédéraux",null,null,{"$f":"Impôts[[#This Row],[Coût prévu]]-Impôts[[#This Row],[Coût réel]]","v":{"v":0,"d":"0.00 $"}}]
["Renseignez la table Assurance à partir de la cellule de droite et la table Impôts à partir de la cellule G33. L’instruction suivante figure dans la cellule A42.","ASSURANCE","Coût prévu","Coût réel","Différence",null,"Régionaux",null,null,{"$f":"Impôts[[#This Row],[Coût prévu]]-Impôts[[#This Row],[Coût réel]]","v":{"v":0,"d":"0.00 $"}}]
[null,"Maison",null,null,{"$f":"Assurance[[#This Row],[Coût prévu]]-Assurance[[#This Row],[Coût réel]]","v":{"v":0,"d":"0.00 $"}},null,"Locaux",null,null,{"$f":"Impôts[[#This Row],[Coût prévu]]-Impôts[[#This Row],[Coût réel]]","v":{"v":0,"d":"0.00 $"}}]
[null,"Santé",null,null,{"$f":"Assurance[[#This Row],[Coût prévu]]-Assurance[[#This Row],[Coût réel]]","v":{"v":0,"d":"0.00 $"}},null,"Autre",null,null,{"$f":"Impôts[[#This Row],[Coût prévu]]-Impôts[[#This Row],[Coût réel]]","v":{"v":0,"d":"0.00 $"}}]
[null,"Vie",null,null,{"$f":"Assurance[[#This Row],[Coût prévu]]-Assurance[[#This Row],[Coût réel]]","v":{"v":0,"d":"0.00 $"}},null,"Sous-total",null,null,{"$f":"SUBTOTAL(109,Impôts[Différence])","v":{"v":0,"d":"0.00 $"}}]
[null,"Autre",null,null,{"$f":"Assurance[[#This Row],[Coût prévu]]-Assurance[[#This Row],[Coût réel]]","v":{"v":0,"d":"0.00 $"}}]
[null,"Sous-total",null,null,{"$f":"SUBTOTAL(109,Assurance[Différence])","v":{"v":0,"d":"0.00 $"}},null,"ÉPARGNE OU INVESTISSEMENTS","Coût prévu","Coût réel","Différence"]
[{"$nulls":6},"Compte d’épargne retraite",null,null,{"$f":"Épargne[[#This Row],[Coût prévu]]-Épargne[[#This Row],[Coût réel]]","v":{"v":0,"d":"0.00 $"}}]
["Renseignez la table Alimentation à partir de la cellule de droite et la table Épargne à partir de la cellule G40. L’instruction suivante figure dans la cellule A48.","ALIMENTATION","Coût prévu","Coût réel","Différence",null,"Compte d’investissement",null,null,{"$f":"Épargne[[#This Row],[Coût prévu]]-Épargne[[#This Row],[Coût réel]]","v":{"v":0,"d":"0.00 $"}}]
[null,"Courses",null,null,{"$f":"Alimentation[[#This Row],[Coût prévu]]-Alimentation[[#This Row],[Coût réel]]","v":{"v":0,"d":"0.00 $"}},null,"Autre",null,null,{"$f":"Épargne[[#This Row],[Coût prévu]]-Épargne[[#This Row],[Coût réel]]","v":{"v":0,"d":"0.00 $"}}]
[null,"Restaurant",null,null,{"$f":"Alimentation[[#This Row],[Coût prévu]]-Alimentation[[#This Row],[Coût réel]]","v":{"v":0,"d":"0.00 $"}},null,"Sous-total",null,null,{"$f":"SUBTOTAL(109,Épargne[Différence])","v":{"v":0,"d":"0.00 $"}}]
[null,"Autre",null,null,{"$f":"Alimentation[[#This Row],[Coût prévu]]-Alimentation[[#This Row],[Coût réel]]","v":{"v":0,"d":"0.00 $"}}]
[null,"Sous-total",null,null,{"$f":"SUBTOTAL(109,Alimentation[Différence])","v":{"v":0,"d":"0.00 $"}},null,"CADEAUX ET DONS","Coût prévu","Coût réel","Différence"]
[{"$nulls":6},"Association caritative 1",null,null,{"$f":"Cadeaux[[#This Row],[Coût prévu]]-Cadeaux[[#This Row],[Coût réel]]","v":{"v":0,"d":"0.00 $"}}]
["Renseignez la table Animaux à partir de la cellule de droite et la table Cadeaux à partir de la cellule G46. L’instruction suivante figure dans la cellule A56.","ANIMAUX","Coût prévu","Coût réel","Différence",null,"Association caritative 2",null,null,{"$f":"Cadeaux[[#This Row],[Coût prévu]]-Cadeaux[[#This Row],[Coût réel]]","v":{"v":0,"d":"0.00 $"}}]
[null,"Alimentation",null,null,{"$f":"Animaux[[#This Row],[Coût prévu]]-Animaux[[#This Row],[Coût réel]]","v":{"v":0,"d":"0.00 $"}},null,"Association caritative 3",null,null,{"$f":"Cadeaux[[#This Row],[Coût prévu]]-Cadeaux[[#This Row],[Coût réel]]","v":{"v":0,"d":"0.00 $"}}]
[null,"Frais médicaux",null,null,{"$f":"Animaux[[#This Row],[Coût prévu]]-Animaux[[#This Row],[Coût réel]]","v":{"v":0,"d":"0.00 $"}},null,"Sous-total",null,null,{"$f":"SUBTOTAL(109,Cadeaux[Différence])","v":{"v":0,"d":"0.00 $"}}]
[null,"Toilettage",null,null,{"$f":"Animaux[[#This Row],[Coût prévu]]-Animaux[[#This Row],[Coût réel]]","v":{"v":0,"d":"0.00 $"}}]
[null,"Jouets",null,null,{"$f":"Animaux[[#This Row],[Coût prévu]]-Animaux[[#This Row],[Coût réel]]","v":{"v":0,"d":"0.00 $"}},null,"JURIQUE","Coût prévu","Coût réel","Différence"]
[null,"Autre",null,null,{"$f":"Animaux[[#This Row],[Coût prévu]]-Animaux[[#This Row],[Coût réel]]","v":{"v":0,"d":"0.00 $"}},null,"Avocat",null,null,{"$f":"Juridique[[#This Row],[Coût prévu]]-Juridique[[#This Row],[Coût réel]]","v":{"v":0,"d":"0.00 $"}}]
[null,"Sous-total",null,null,{"$f":"SUBTOTAL(109,Animaux[Différence])","v":{"v":0,"d":"0.00 $"}},null,"Pension alimentaire",null,null,{"$f":"Juridique[[#This Row],[Coût prévu]]-Juridique[[#This Row],[Coût réel]]","v":{"v":0,"d":"0.00 $"}}]
[{"$nulls":6},"Paiements suite à un recours ou à un jugement",null,null,{"$f":"Juridique[[#This Row],[Coût prévu]]-Juridique[[#This Row],[Coût réel]]","v":{"v":0,"d":"0.00 $"}}]
["Renseignez la table Soins personnels à partir de la cellule de droite et la table Juridique à partir de la cellule G52. L’instruction suivante figure dans la cellule A59.","SOINS PERSONNELS","Coût prévu","Coût réel","Différence",null,"Autre",null,null,{"$f":"Juridique[[#This Row],[Coût prévu]]-Juridique[[#This Row],[Coût réel]]","v":{"v":0,"d":"0.00 $"}}]
[null,"Frais médicaux",null,null,{"$f":"SoinsPersonnels[[#This Row],[Coût prévu]]-SoinsPersonnels[[#This Row],[Coût réel]]","v":{"v":0,"d":"0.00 $"}},null,"Sous-total",null,null,{"$f":"SUBTOTAL(109,Juridique[Différence])","v":{"v":0,"d":"0.00 $"}}]
[null,"Coiffeur/manucure",null,null,{"$f":"SoinsPersonnels[[#This Row],[Coût prévu]]-SoinsPersonnels[[#This Row],[Coût réel]]","v":{"v":0,"d":"0.00 $"}}]
["Le coût total prévu est automatiquement calculé dans la cellule J59, le coût total réel dans la cellule J61 et la différence totale dans la cellule J63.","Habillement",null,null,{"$f":"SoinsPersonnels[[#This Row],[Coût prévu]]-SoinsPersonnels[[#This Row],[Coût réel]]","v":{"v":0,"d":"0.00 $"}},null,"COÛT TOTAL PRÉVU",null,null,{"$f":"SUBTOTAL(109,Logement[Coût prévu],Transport[Coût prévu],Assurance[Coût prévu],Alimentation[Coût prévu],Animaux[Coût prévu],SoinsPersonnels[Coût prévu],Loisirs[Coût prévu],Emprunts[Coût prévu],Impôts[Coût prévu],Épargne[Coût prévu],Cadeaux[Coût prévu],Juridique[Coût prévu])","v":{"v":1195,"d":"1,195.00 $"}}]
[null,"Nettoyage à sec",null,null,{"$f":"SoinsPersonnels[[#This Row],[Coût prévu]]-SoinsPersonnels[[#This Row],[Coût réel]]","v":{"v":0,"d":"0.00 $"}}]
[null,"Club de sport",null,null,{"$f":"SoinsPersonnels[[#This Row],[Coût prévu]]-SoinsPersonnels[[#This Row],[Coût réel]]","v":{"v":0,"d":"0.00 $"}},null,"COÛT RÉEL TOTAL",null,null,{"$f":"SUBTOTAL(109,Logement[Coût réel],Transport[Coût réel],Assurance[Coût réel],Alimentation[Coût réel],Animaux[Coût réel],SoinsPersonnels[Coût réel],Loisirs[Coût réel],Emprunts[Coût réel],Impôts[Coût réel],Épargne[Coût réel],Cadeaux[Coût réel],Juridique[Coût réel])","v":{"v":1236,"d":"1,236.00 $"}}]
[null,"Cotisations ou frais d’inscription",null,null,{"$f":"SoinsPersonnels[[#This Row],[Coût prévu]]-SoinsPersonnels[[#This Row],[Coût réel]]","v":{"v":0,"d":"0.00 $"}}]
[null,"Autre",null,null,{"$f":"SoinsPersonnels[[#This Row],[Coût prévu]]-SoinsPersonnels[[#This Row],[Coût réel]]","v":{"v":0,"d":"0.00 $"}},null,"DIFFÉRENCE TOTALE",null,null,{"$f":"J59-J61","v":{"v":-41,"d":"-41.00 $ "}}]
[null,"Sous-total",null,null,{"$f":"SUBTOTAL(109,SoinsPersonnels[Différence])","v":{"v":0,"d":"0.00 $"}}]